[Event "Titled Tuesday Blitz September 21 2021"]
[White "Ider, Borya"]
[Black "Al-Tarboush, Ward"]
[WhiteFideId "4901134"]
[BlackFideId "7601450"]
[WhiteElo "2512"]
[BlackElo "2319"]
[Result "1/2-1/2"]
[Round "03"]
[TimeControl "180+1"]
[Date "2021.09.21"]
[WhiteClock "0:00:10"]
[BlackClock "0:00:07"]

1. Nf3 {[%clk 0:03:00]}  b6 {[%clk 0:02:59]} 2. g3 {[%clk 0:03:00]}  Bb7 {[%clk 0:02:59]} 3. Bg2 {[%clk 0:03:00]}  Nf6 {[%clk 0:02:59]} 4. d4 {[%clk 0:03:01]}  e6 {[%clk 0:03:00]} 5. O-O {[%clk 0:03:00]}  Be7 {[%clk 0:02:55]} 6. c4 {[%clk 0:02:59]}  O-O {[%clk 0:02:56]} 7. d5 {[%clk 0:03:00]}  exd5 {[%clk 0:02:50]} 8. Nh4 {[%clk 0:02:58]}  c6 {[%clk 0:02:43]} 9. cxd5 {[%clk 0:02:57]}  Nxd5 {[%clk 0:02:41]} 10. Nf5 {[%clk 0:02:57]}  d6 {[%clk 0:02:34]} 11. e4 {[%clk 0:02:54]}  Nf6 {[%clk 0:02:34]} 12. Nc3 {[%clk 0:02:53]}  Re8 {[%clk 0:02:15]} 13. Bf4 {[%clk 0:02:46]}  d5 {[%clk 0:02:08]} 14. Nxe7+ {[%clk 0:02:43]}  Qxe7 {[%clk 0:02:03]} 15. exd5 {[%clk 0:02:42]}  cxd5 {[%clk 0:01:57]} 16. Nb5 {[%clk 0:02:33]}  Na6 {[%clk 0:01:50]} 17. Nd6 {[%clk 0:02:27]}  Red8 {[%clk 0:01:43]} 18. Re1 {[%clk 0:02:21]}  Qd7 {[%clk 0:01:24]} 19. Rc1 {[%clk 0:02:12]}  Nc5 {[%clk 0:01:23]} 20. Nxb7 {[%clk 0:02:09]}  Qxb7 {[%clk 0:01:19]} 21. Be5 {[%clk 0:02:05]}  Nfe4 {[%clk 0:01:12]} 22. f3 {[%clk 0:01:51]}  Nd6 {[%clk 0:01:01]} 23. Qe2 {[%clk 0:01:29]}  f6 {[%clk 0:00:56]} 24. Bd4 {[%clk 0:01:29]}  Re8 {[%clk 0:00:38]} 25. Qc2 {[%clk 0:01:25]}  Ne6 {[%clk 0:00:30]} 26. Bf2 {[%clk 0:01:19]}  Rac8 {[%clk 0:00:30]} 27. Qd3 {[%clk 0:01:18]}  Nc5 {[%clk 0:00:29]} 28. Bxc5 {[%clk 0:01:16]}  bxc5 {[%clk 0:00:29]} 29. f4 {[%clk 0:01:16]}  Ne4 {[%clk 0:00:28]} 30. Rcd1 {[%clk 0:01:16]}  Rcd8 {[%clk 0:00:17]} 31. Bxe4 {[%clk 0:01:14]}  dxe4 {[%clk 0:00:18]} 32. Qc4+ {[%clk 0:00:44]}  Qf7 {[%clk 0:00:17]} 33. Rxd8 {[%clk 0:00:39]}  Rxd8 {[%clk 0:00:15]} 34. Qxc5 {[%clk 0:00:31]}  Qxa2 {[%clk 0:00:14]} 35. Qe7 {[%clk 0:00:31]}  Rb8 {[%clk 0:00:12]} 36. Rd1 {[%clk 0:00:19]}  h6 {[%clk 0:00:10]} 37. Rd7 {[%clk 0:00:16]}  Qb1+ {[%clk 0:00:07]} 38. Kg2 {[%clk 0:00:16]}  Qxb2+ {[%clk 0:00:07]} 39. Kh3 {[%clk 0:00:17]}  f5 {[%clk 0:00:08]} 40. Qe6+ {[%clk 0:00:16]}  Kh8 {[%clk 0:00:08]} 41. Qxf5 {[%clk 0:00:17]}  Re8 {[%clk 0:00:07]} 42. Qg6 {[%clk 0:00:14]}  Rf8 {[%clk 0:00:06]} 43. Qxe4 {[%clk 0:00:13]}  Qb6 {[%clk 0:00:05]} 44. Qe7 {[%clk 0:00:13]}  Qf6 {[%clk 0:00:05]} 45. Rxa7 {[%clk 0:00:11]}  Qxe7 {[%clk 0:00:05]} 46. Rxe7 {[%clk 0:00:10]}  Ra8 {[%clk 0:00:05]} 47. Kg4 {[%clk 0:00:10]}  Kh7 {[%clk 0:00:04]} 48. h3 {[%clk 0:00:10]}  Ra5 {[%clk 0:00:05]} 49. Kh4 {[%clk 0:00:10]}  Rb5 {[%clk 0:00:05]} 50. g4 {[%clk 0:00:10]}  Rc5 {[%clk 0:00:05]} 51. f5 {[%clk 0:00:10]}  Rc6 {[%clk 0:00:05]} 52. Kh5 {[%clk 0:00:09]}  Rd6 {[%clk 0:00:05]} 53. h4 {[%clk 0:00:09]}  Rd5 {[%clk 0:00:04]} 54. Rb7 {[%clk 0:00:08]}  Rd6 {[%clk 0:00:05]} 55. g5 {[%clk 0:00:08]}  hxg5 {[%clk 0:00:05]} 56. hxg5 {[%clk 0:00:09]}  Kg8 {[%clk 0:00:05]} 57. g6 {[%clk 0:00:08]}  Kf8 {[%clk 0:00:05]} 58. Kg5 {[%clk 0:00:07]}  Rd1 {[%clk 0:00:05]} 59. Rb8+ {[%clk 0:00:04]}  Ke7 {[%clk 0:00:05]} 60. Rb7+ {[%clk 0:00:04]}  Kf8 {[%clk 0:00:05]} 61. Rb4 {[%clk 0:00:04]}  Rg1+ {[%clk 0:00:05]} 62. Kf4 {[%clk 0:00:04]}  Rf1+ {[%clk 0:00:05]} 63. Ke5 {[%clk 0:00:05]}  Re1+ {[%clk 0:00:06]} 64. Kd5 {[%clk 0:00:05]}  Ke7 {[%clk 0:00:05]} 65. Rb7+ {[%clk 0:00:04]}  Kf8 {[%clk 0:00:06]} 66. Rb4 {[%clk 0:00:03]}  Ke7 {[%clk 0:00:06]} 67. Re4+ {[%clk 0:00:04]}  Rxe4 {[%clk 0:00:05]} 68. Kxe4 {[%clk 0:00:05]}  Kf6 {[%clk 0:00:04]} 69. Kf4 {[%clk 0:00:05]}  Ke7 {[%clk 0:00:04]} 70. Ke5 {[%clk 0:00:06]}  Ke8 {[%clk 0:00:04]} 71. Ke6 {[%clk 0:00:04]}  Kf8 {[%clk 0:00:04]} 72. f6 {[%clk 0:00:05]}  Kg8 {[%clk 0:00:03]} 73. Ke7 {[%clk 0:00:04]}  gxf6 {[%clk 0:00:04]} 74. Kxf6 {[%clk 0:00:04]}  Kf8 {[%clk 0:00:04]} 75. Kf5 {[%clk 0:00:05]}  Kg7 {[%clk 0:00:05]} 76. Kg5 {[%clk 0:00:05]}  Kg8 {[%clk 0:00:05]} 77. Kf6 {[%clk 0:00:06]}  Kf8 {[%clk 0:00:05]} 78. Kf5 {[%clk 0:00:07]}  Kg7 {[%clk 0:00:06]} 79. Kg5 {[%clk 0:00:08]}  Kg8 {[%clk 0:00:06]} 80. Kh6 {[%clk 0:00:09]}  Kh8 {[%clk 0:00:06]} 81. g7+ {[%clk 0:00:09]}  Kg8 {[%clk 0:00:07]} 82. Kg6 {[%clk 0:00:10]} 1/2-1/2


[Site "https://www.chess.com"]

[Event "Titled Tuesday Blitz September 21 2021"]
[White "Kabanov, Nikolai"]
[Black "Pinheiro, Iung Alicio de O."]
[WhiteFideId "4127820"]
[BlackFideId "2104350"]
[WhiteElo "2303"]
[BlackElo "2610"]
[Result "0-1"]
[Round "03"]
[TimeControl "180+1"]
[Date "2021.09.21"]
[WhiteClock "0:00:03"]
[BlackClock "0:00:20"]

1. e4 {[%clk 0:03:00]}  c6 {[%clk 0:02:58]} 2. d4 {[%clk 0:03:00]}  d5 {[%clk 0:02:58]} 3. e5 {[%clk 0:03:01]}  Bf5 {[%clk 0:02:57]} 4. h4 {[%clk 0:03:01]}  h6 {[%clk 0:02:57]} 5. g4 {[%clk 0:03:00]}  Bd7 {[%clk 0:02:57]} 6. f4 {[%clk 0:02:17]}  h5 {[%clk 0:02:46]} 7. f5 {[%clk 0:02:10]}  hxg4 {[%clk 0:02:40]} 8. e6 {[%clk 0:01:47]}  fxe6 {[%clk 0:02:37]} 9. Qxg4 {[%clk 0:01:46]}  Qc8 {[%clk 0:02:26]} 10. Qg6+ {[%clk 0:01:34]}  Kd8 {[%clk 0:02:25]} 11. Nf3 {[%clk 0:01:29]}  exf5 {[%clk 0:02:03]} 12. Ne5 {[%clk 0:01:28]}  Be8 {[%clk 0:02:01]} 13. Qg3 {[%clk 0:00:53]}  Nd7 {[%clk 0:01:46]} 14. Bd3 {[%clk 0:00:43]}  Nxe5 {[%clk 0:01:42]} 15. Qxe5 {[%clk 0:00:44]}  Bd7 {[%clk 0:01:27]} 16. Bg5 {[%clk 0:00:37]}  Nf6 {[%clk 0:01:19]} 17. Nd2 {[%clk 0:00:30]}  Qc7 {[%clk 0:01:16]} 18. Nf3 {[%clk 0:00:28]}  Ng4 {[%clk 0:01:03]} 19. Qxc7+ {[%clk 0:00:22]}  Kxc7 {[%clk 0:01:04]} 20. Kd2 {[%clk 0:00:15]}  e6 {[%clk 0:01:03]} 21. Rae1 {[%clk 0:00:14]}  Bd6 {[%clk 0:01:01]} 22. c3 {[%clk 0:00:10]}  g6 {[%clk 0:00:55]} 23. Rhf1 {[%clk 0:00:08]}  Rae8 {[%clk 0:00:55]} 24. Kc2 {[%clk 0:00:08]}  Rhf8 {[%clk 0:00:52]} 25. b4 {[%clk 0:00:06]}  b6 {[%clk 0:00:51]} 26. a4 {[%clk 0:00:06]}  c5 {[%clk 0:00:47]} 27. bxc5 {[%clk 0:00:06]}  bxc5 {[%clk 0:00:47]} 28. dxc5 {[%clk 0:00:06]}  Bxc5 {[%clk 0:00:47]} 29. Bf4+ {[%clk 0:00:07]}  Bd6 {[%clk 0:00:46]} 30. Ne5 {[%clk 0:00:04]}  Bxa4+ {[%clk 0:00:45]} 31. Kd2 {[%clk 0:00:04]}  Nxe5 {[%clk 0:00:46]} 32. Bxe5 {[%clk 0:00:04]}  Bxe5 {[%clk 0:00:47]} 33. Rxe5 {[%clk 0:00:04]}  Kd6 {[%clk 0:00:47]} 34. Ree1 {[%clk 0:00:01]}  Bc6 {[%clk 0:00:35]} 35. Ra1 {[%clk 0:00:02]}  Ra8 {[%clk 0:00:33]} 36. Rg1 {[%clk 0:00:02]}  Rg8 {[%clk 0:00:32]} 37. Be2 {[%clk 0:00:03]}  a5 {[%clk 0:00:32]} 38. Ra3 {[%clk 0:00:03]}  a4 {[%clk 0:00:31]} 39. c4 {[%clk 0:00:03]}  dxc4 {[%clk 0:00:31]} 40. Bxc4 {[%clk 0:00:03]}  Bd5 {[%clk 0:00:31]} 41. Bxd5 {[%clk 0:00:03]}  Kxd5 {[%clk 0:00:31]} 42. Rga1 {[%clk 0:00:03]}  Rgb8 {[%clk 0:00:27]} 43. Re1 {[%clk 0:00:02]}  Rb3 {[%clk 0:00:25]} 44. Ra2 {[%clk 0:00:02]}  e5 {[%clk 0:00:25]} 45. Rc2 {[%clk 0:00:01]}  a3 {[%clk 0:00:24]} 46. Ra1 {[%clk 0:00:01]}  e4 {[%clk 0:00:23]} 47. Rc3 {[%clk 0:00:01]}  Rxc3 {[%clk 0:00:22]} 48. Kxc3 {[%clk 0:00:02]}  a2 {[%clk 0:00:23]} 49. Kd2 {[%clk 0:00:02]}  Kd4 {[%clk 0:00:23]} 50. Ke2 {[%clk 0:00:03]}  e3 {[%clk 0:00:22]} 51. Ke1 {[%clk 0:00:03]}  Kd3 {[%clk 0:00:22]} 52. Kd1 {[%clk 0:00:03]}  f4 {[%clk 0:00:22]} 53. Ke1 {[%clk 0:00:03]}  f3 {[%clk 0:00:22]} 54. Rd1+ {[%clk 0:00:04]}  Ke4 {[%clk 0:00:22]} 55. Ra1 {[%clk 0:00:04]}  Ra3 {[%clk 0:00:21]} 56. Kf1 {[%clk 0:00:04]}  Rb3 {[%clk 0:00:20]} 57. h5 {[%clk 0:00:03]}  Rb1+ {[%clk 0:00:20]} 0-1


[Site "https://www.chess.com"]

[Event "Titled Tuesday Blitz September 21 2021"]
[White "Kamsky, Gata"]
[Black "Djordjevic, Vuk"]
[WhiteFideId "2000024"]
[BlackFideId "902098"]
[WhiteElo "2603"]
[BlackElo "2463"]
[Result "1-0"]
[Round "03"]
[TimeControl "180+1"]
[Date "2021.09.21"]
[WhiteClock "0:00:25"]
[BlackClock "0:01:18"]

1. e4 {[%clk 0:02:34]}  e6 {[%clk 0:02:57]} 2. d4 {[%clk 0:02:28]}  d5 {[%clk 0:02:55]} 3. Nc3 {[%clk 0:02:27]}  Bb4 {[%clk 0:02:55]} 4. e5 {[%clk 0:02:22]}  c5 {[%clk 0:02:55]} 5. a3 {[%clk 0:02:22]}  Bxc3+ {[%clk 0:02:55]} 6. bxc3 {[%clk 0:02:22]}  Ne7 {[%clk 0:02:55]} 7. Qg4 {[%clk 0:02:18]}  Qc7 {[%clk 0:02:53]} 8. Qxg7 {[%clk 0:02:06]}  Rg8 {[%clk 0:02:52]} 9. Qxh7 {[%clk 0:02:07]}  cxd4 {[%clk 0:02:51]} 10. Ne2 {[%clk 0:02:01]}  Nbc6 {[%clk 0:02:46]} 11. f4 {[%clk 0:01:59]}  Bd7 {[%clk 0:02:44]} 12. Qd3 {[%clk 0:01:57]}  dxc3 {[%clk 0:02:44]} 13. Nxc3 {[%clk 0:01:55]}  a6 {[%clk 0:02:41]} 14. Ne2 {[%clk 0:01:23]}  Na5 {[%clk 0:02:35]} 15. Nd4 {[%clk 0:01:22]}  Nc4 {[%clk 0:02:32]} 16. g3 {[%clk 0:01:19]}  Nc6 {[%clk 0:02:25]} 17. Be2 {[%clk 0:01:12]}  Qa5+ {[%clk 0:02:19]} 18. c3 {[%clk 0:01:08]}  Rc8 {[%clk 0:02:12]} 19. O-O {[%clk 0:01:07]}  Nxd4 {[%clk 0:02:09]} 20. cxd4 {[%clk 0:01:02]}  Nb6 {[%clk 0:02:06]} 21. Bd2 {[%clk 0:01:00]}  Qa4 {[%clk 0:02:04]} 22. Bd1 {[%clk 0:00:58]}  Qc4 {[%clk 0:01:57]} 23. Qe3 {[%clk 0:00:55]}  Qc7 {[%clk 0:01:46]} 24. Be2 {[%clk 0:00:38]}  Nc4 {[%clk 0:01:39]} 25. Bxc4 {[%clk 0:00:38]}  dxc4 {[%clk 0:01:38]} 26. Bb4 {[%clk 0:00:34]}  a5 {[%clk 0:01:34]} 27. Bd6 {[%clk 0:00:33]}  Qc6 {[%clk 0:01:35]} 28. f5 {[%clk 0:00:31]}  exf5 {[%clk 0:01:29]} 29. Qh6 {[%clk 0:00:26]}  Qd5 {[%clk 0:01:24]} 30. Qh4 {[%clk 0:00:26]}  Qe6 {[%clk 0:01:18]} 31. d5 {[%clk 0:00:25]} 1-0


[Site "https://www.chess.com"]

[Event "Titled Tuesday Blitz September 21 2021"]
[White "Karttunen, Mika"]
[Black "Gubanov, Oleg"]
[WhiteFideId "502081"]
[BlackFideId "14115115"]
[WhiteElo "2343"]
[BlackElo "2128"]
[Result "0-1"]
[Round "03"]
[TimeControl "180+1"]
[Date "2021.09.21"]
[WhiteClock "0:00:17"]
[BlackClock "0:00:21"]

1. d4 {[%clk 0:03:00]}  b5 {[%clk 0:02:56]} 2. Nf3 {[%clk 0:02:49]}  Bb7 {[%clk 0:02:56]} 3. e3 {[%clk 0:02:45]}  a6 {[%clk 0:02:56]} 4. a4 {[%clk 0:02:41]}  b4 {[%clk 0:02:56]} 5. a5 {[%clk 0:02:25]}  e6 {[%clk 0:02:54]} 6. Nbd2 {[%clk 0:02:17]}  Nf6 {[%clk 0:02:53]} 7. Nc4 {[%clk 0:02:13]}  d5 {[%clk 0:02:46]} 8. Nce5 {[%clk 0:02:12]}  Bd6 {[%clk 0:02:35]} 9. c4 {[%clk 0:02:10]}  bxc3 {[%clk 0:02:34]} 10. bxc3 {[%clk 0:02:10]}  O-O {[%clk 0:02:23]} 11. Qb3 {[%clk 0:02:04]}  Ra7 {[%clk 0:02:19]} 12. Ba3 {[%clk 0:01:57]}  Nbd7 {[%clk 0:01:46]} 13. Bxd6 {[%clk 0:01:46]}  cxd6 {[%clk 0:01:47]} 14. Nd3 {[%clk 0:01:41]}  Qc7 {[%clk 0:01:42]} 15. Nd2 {[%clk 0:01:22]}  Rc8 {[%clk 0:01:41]} 16. Ra3 {[%clk 0:01:22]}  Bc6 {[%clk 0:01:31]} 17. Nb4 {[%clk 0:01:20]}  Bb5 {[%clk 0:01:32]} 18. Bxb5 {[%clk 0:01:18]}  axb5 {[%clk 0:01:32]} 19. Qa2 {[%clk 0:01:05]}  Rca8 {[%clk 0:01:26]} 20. a6 {[%clk 0:01:04]}  Nb6 {[%clk 0:01:25]} 21. O-O {[%clk 0:01:03]}  Na4 {[%clk 0:01:24]} 22. Rc1 {[%clk 0:00:51]}  Nd7 {[%clk 0:01:19]} 23. e4 {[%clk 0:00:43]}  dxe4 {[%clk 0:01:07]} 24. d5 {[%clk 0:00:41]}  Ndc5 {[%clk 0:00:47]} 25. dxe6 {[%clk 0:00:41]}  fxe6 {[%clk 0:00:47]} 26. Nxe4 {[%clk 0:00:40]}  d5 {[%clk 0:00:40]} 27. Nxc5 {[%clk 0:00:32]}  Nxc5 {[%clk 0:00:40]} 28. Re1 {[%clk 0:00:32]}  Qd6 {[%clk 0:00:31]} 29. Qe2 {[%clk 0:00:28]}  Nxa6 {[%clk 0:00:30]} 30. Qxe6+ {[%clk 0:00:22]}  Qxe6 {[%clk 0:00:29]} 31. Rxe6 {[%clk 0:00:22]}  Nxb4 {[%clk 0:00:30]} 32. Rxa7 {[%clk 0:00:20]}  Rxa7 {[%clk 0:00:31]} 33. h4 {[%clk 0:00:16]}  Na2 {[%clk 0:00:25]} 34. Rc6 {[%clk 0:00:16]}  Ra3 {[%clk 0:00:24]} 35. Rc5 {[%clk 0:00:16]}  Nxc3 {[%clk 0:00:23]} 36. h5 {[%clk 0:00:16]}  h6 {[%clk 0:00:23]} 37. g4 {[%clk 0:00:16]}  b4 {[%clk 0:00:23]} 38. Kg2 {[%clk 0:00:16]}  d4 {[%clk 0:00:23]} 39. f4 {[%clk 0:00:16]}  b3 {[%clk 0:00:23]} 40. g5 {[%clk 0:00:16]}  hxg5 {[%clk 0:00:23]} 41. fxg5 {[%clk 0:00:16]}  b2 {[%clk 0:00:23]} 42. g6 {[%clk 0:00:17]}  Ra8 {[%clk 0:00:21]} 0-1


[Site "https://www.chess.com"]

[Event "Titled Tuesday Blitz September 21 2021"]
[White "Khanin, Semen"]
[Black "Kislov, Oleg"]
[WhiteFideId "4111990"]
[BlackFideId "13503774"]
[WhiteElo "2449"]
[BlackElo "2252"]
[Result "1/2-1/2"]
[Round "03"]
[TimeControl "180+1"]
[Date "2021.09.21"]
[WhiteClock "0:00:02"]
[BlackClock "0:00:04"]

1. e4 {[%clk 0:03:00]}  e6 {[%clk 0:02:59]} 2. d4 {[%clk 0:03:00]}  d5 {[%clk 0:02:59]} 3. e5 {[%clk 0:03:01]}  c5 {[%clk 0:03:00]} 4. c3 {[%clk 0:03:01]}  Qb6 {[%clk 0:03:00]} 5. Nf3 {[%clk 0:03:02]}  Nc6 {[%clk 0:03:00]} 6. Na3 {[%clk 0:03:01]}  cxd4 {[%clk 0:02:58]} 7. cxd4 {[%clk 0:03:02]}  Bb4+ {[%clk 0:02:57]} 8. Bd2 {[%clk 0:03:01]}  Nge7 {[%clk 0:02:47]} 9. Nb5 {[%clk 0:02:57]}  Nf5 {[%clk 0:02:33]} 10. Bxb4 {[%clk 0:02:54]}  Nxb4 {[%clk 0:02:31]} 11. a3 {[%clk 0:02:31]}  Nc6 {[%clk 0:02:30]} 12. g4 {[%clk 0:02:26]}  a6 {[%clk 0:02:28]} 13. gxf5 {[%clk 0:02:24]}  axb5 {[%clk 0:02:27]} 14. fxe6 {[%clk 0:01:34]}  Bxe6 {[%clk 0:02:27]} 15. Be2 {[%clk 0:01:27]}  Bg4 {[%clk 0:02:13]} 16. Rg1 {[%clk 0:01:14]}  Bxf3 {[%clk 0:02:08]} 17. Bxf3 {[%clk 0:01:15]}  Qxd4 {[%clk 0:02:08]} 18. Bxd5 {[%clk 0:01:10]}  Qxe5+ {[%clk 0:02:03]} 19. Qe2 {[%clk 0:01:08]}  Qxe2+ {[%clk 0:02:02]} 20. Kxe2 {[%clk 0:01:09]}  O-O {[%clk 0:02:02]} 21. Rac1 {[%clk 0:01:07]}  Rfe8+ {[%clk 0:01:56]} 22. Kf1 {[%clk 0:01:07]}  Rac8 {[%clk 0:01:55]} 23. Rg3 {[%clk 0:01:06]}  Re5 {[%clk 0:01:51]} 24. Bg2 {[%clk 0:00:31]}  g6 {[%clk 0:01:44]} 25. Rgc3 {[%clk 0:00:31]}  Re6 {[%clk 0:01:42]} 26. Rc5 {[%clk 0:00:31]}  Rd8 {[%clk 0:01:14]} 27. Rxb5 {[%clk 0:00:29]}  Rd2 {[%clk 0:01:14]} 28. Rxb7 {[%clk 0:00:26]}  Nd4 {[%clk 0:01:11]} 29. Re1 {[%clk 0:00:23]}  Rf6 {[%clk 0:01:09]} 30. Kg1 {[%clk 0:00:17]}  Rfxf2 {[%clk 0:01:08]} 31. Bd5 {[%clk 0:00:17]}  Rxb2 {[%clk 0:00:33]} 32. Rxb2 {[%clk 0:00:15]}  Rxb2 {[%clk 0:00:32]} 33. a4 {[%clk 0:00:15]}  Kg7 {[%clk 0:00:27]} 34. Ra1 {[%clk 0:00:13]}  Ne2+ {[%clk 0:00:25]} 35. Kf1 {[%clk 0:00:12]}  Nc3 {[%clk 0:00:25]} 36. Bg2 {[%clk 0:00:12]}  Ra2 {[%clk 0:00:07]} 37. Rxa2 {[%clk 0:00:12]}  Nxa2 {[%clk 0:00:08]} 38. a5 {[%clk 0:00:12]}  Nb4 {[%clk 0:00:09]} 39. Ke2 {[%clk 0:00:12]}  Kf6 {[%clk 0:00:09]} 40. Kd2 {[%clk 0:00:12]}  Ke5 {[%clk 0:00:07]} 41. Kc3 {[%clk 0:00:13]}  Na6 {[%clk 0:00:07]} 42. Kc4 {[%clk 0:00:13]}  Kd6 {[%clk 0:00:07]} 43. Kb5 {[%clk 0:00:14]}  Nc7+ {[%clk 0:00:07]} 44. Kb6 {[%clk 0:00:14]}  f5 {[%clk 0:00:07]} 45. h4 {[%clk 0:00:09]}  h6 {[%clk 0:00:07]} 46. Bh3 {[%clk 0:00:08]}  f4 {[%clk 0:00:06]} 47. Bg4 {[%clk 0:00:07]}  g5 {[%clk 0:00:06]} 48. hxg5 {[%clk 0:00:08]}  hxg5 {[%clk 0:00:06]} 49. Bf3 {[%clk 0:00:09]}  Kd7 {[%clk 0:00:05]} 50. Bg4+ {[%clk 0:00:06]}  Kd6 {[%clk 0:00:05]} 51. Bf3 {[%clk 0:00:06]}  Kd7 {[%clk 0:00:05]} 52. Kb7 {[%clk 0:00:07]}  Kd6 {[%clk 0:00:05]} 53. Be2 {[%clk 0:00:04]}  Kd7 {[%clk 0:00:04]} 54. Bf3 {[%clk 0:00:02]}  Kd6 {[%clk 0:00:04]} 55. Kb6 {[%clk 0:00:02]} 1/2-1/2


[Site "https://www.chess.com"]

[Event "Titled Tuesday Blitz September 21 2021"]
[White "Kobalia, Mikhail"]
[Black "Richter, Nils"]
[WhiteFideId "4119150"]
[BlackFideId "12990809"]
[WhiteElo "2626"]
[BlackElo "2289"]
[Result "1-0"]
[Round "03"]
[TimeControl "180+1"]
[Date "2021.09.21"]
[WhiteClock "0:00:31"]
[BlackClock "0:00:07"]

1. e4 {[%clk 0:03:00]}  e6 {[%clk 0:02:59]} 2. d3 {[%clk 0:02:52]}  d5 {[%clk 0:02:59]} 3. Nd2 {[%clk 0:02:52]}  c5 {[%clk 0:02:59]} 4. Ngf3 {[%clk 0:02:51]}  Nc6 {[%clk 0:02:59]} 5. g3 {[%clk 0:02:50]}  Bd6 {[%clk 0:02:59]} 6. Bg2 {[%clk 0:02:49]}  Nge7 {[%clk 0:02:59]} 7. O-O {[%clk 0:02:48]}  O-O {[%clk 0:02:59]} 8. Re1 {[%clk 0:02:47]}  Qc7 {[%clk 0:02:59]} 9. c3 {[%clk 0:02:46]}  b6 {[%clk 0:02:58]} 10. Qe2 {[%clk 0:02:41]}  f6 {[%clk 0:02:58]} 11. h4 {[%clk 0:02:39]}  Bd7 {[%clk 0:02:57]} 12. h5 {[%clk 0:02:39]}  Rae8 {[%clk 0:02:54]} 13. h6 {[%clk 0:02:37]}  g6 {[%clk 0:02:53]} 14. Nf1 {[%clk 0:02:35]}  Kh8 {[%clk 0:02:47]} 15. a3 {[%clk 0:02:32]}  a5 {[%clk 0:02:45]} 16. a4 {[%clk 0:02:31]}  Ng8 {[%clk 0:02:44]} 17. Bd2 {[%clk 0:02:30]}  Rf7 {[%clk 0:02:39]} 18. N1h2 {[%clk 0:02:29]}  Bf8 {[%clk 0:02:39]} 19. Ng4 {[%clk 0:02:28]}  dxe4 {[%clk 0:02:34]} 20. dxe4 {[%clk 0:02:24]}  e5 {[%clk 0:02:34]} 21. Nfh2 {[%clk 0:02:23]}  f5 {[%clk 0:02:24]} 22. exf5 {[%clk 0:02:18]}  gxf5 {[%clk 0:02:25]} 23. Ne3 {[%clk 0:02:11]}  Bxh6 {[%clk 0:02:22]} 24. Nd5 {[%clk 0:02:08]}  Qd8 {[%clk 0:02:17]} 25. Qh5 {[%clk 0:02:05]}  Bxd2 {[%clk 0:02:02]} 26. Red1 {[%clk 0:01:59]}  Be6 {[%clk 0:01:47]} 27. Rxd2 {[%clk 0:01:58]}  Rd7 {[%clk 0:01:32]} 28. Rad1 {[%clk 0:01:57]}  Rf8 {[%clk 0:01:10]} 29. Nf1 {[%clk 0:01:46]}  Nce7 {[%clk 0:01:05]} 30. Nfe3 {[%clk 0:01:36]}  Nxd5 {[%clk 0:01:04]} 31. Bxd5 {[%clk 0:01:35]}  Bxd5 {[%clk 0:01:01]} 32. Rxd5 {[%clk 0:01:33]}  Rxd5 {[%clk 0:01:01]} 33. Rxd5 {[%clk 0:01:32]}  Qf6 {[%clk 0:00:57]} 34. Nc4 {[%clk 0:01:32]}  e4 {[%clk 0:00:39]} 35. Rd6 {[%clk 0:01:28]}  Qg7 {[%clk 0:00:33]} 36. Nxb6 {[%clk 0:01:01]}  f4 {[%clk 0:00:30]} 37. Rd7 {[%clk 0:01:01]}  Ne7 {[%clk 0:00:23]} 38. g4 {[%clk 0:00:41]}  Rg8 {[%clk 0:00:20]} 39. Kf1 {[%clk 0:00:34]}  e3 {[%clk 0:00:13]} 40. Nd5 {[%clk 0:00:33]}  f3 {[%clk 0:00:07]} 41. Rxe7 {[%clk 0:00:32]}  e2+ {[%clk 0:00:08]} 42. Ke1 {[%clk 0:00:31]}  Qxg4 {[%clk 0:00:07]} 43. Qxh7# {[%clk 0:00:31]} 1-0


[Site "https://www.chess.com"]

[Event "Titled Tuesday Blitz September 21 2021"]
[White "Kollars, Dmitrij"]
[Black "Krysa, Leandro"]
[WhiteFideId "12909572"]
[BlackFideId "116807"]
[WhiteElo "2584"]
[BlackElo "2490"]
[Result "1-0"]
[Round "03"]
[TimeControl "180+1"]
[Date "2021.09.21"]
[WhiteClock "0:00:41"]
[BlackClock "0:00:02"]

1. d4 {[%clk 0:03:00]}  Nf6 {[%clk 0:02:59]} 2. Nf3 {[%clk 0:03:00]}  e6 {[%clk 0:02:59]} 3. Bg5 {[%clk 0:02:59]}  c5 {[%clk 0:02:57]} 4. d5 {[%clk 0:02:59]}  exd5 {[%clk 0:02:48]} 5. Nc3 {[%clk 0:02:59]}  d4 {[%clk 0:02:45]} 6. Bxf6 {[%clk 0:02:59]}  Qxf6 {[%clk 0:02:36]} 7. Nd5 {[%clk 0:02:59]}  Qd6 {[%clk 0:02:24]} 8. e4 {[%clk 0:02:58]}  Nc6 {[%clk 0:02:18]} 9. Bc4 {[%clk 0:02:54]}  g6 {[%clk 0:02:14]} 10. O-O {[%clk 0:02:48]}  Bg7 {[%clk 0:02:14]} 11. c3 {[%clk 0:02:28]}  O-O {[%clk 0:02:12]} 12. Re1 {[%clk 0:02:28]}  b6 {[%clk 0:02:06]} 13. cxd4 {[%clk 0:02:23]}  cxd4 {[%clk 0:02:02]} 14. a3 {[%clk 0:01:55]}  Bb7 {[%clk 0:01:59]} 15. b4 {[%clk 0:01:55]}  Rac8 {[%clk 0:01:58]} 16. Bb3 {[%clk 0:01:55]}  Rfe8 {[%clk 0:01:49]} 17. h3 {[%clk 0:01:55]}  d3 {[%clk 0:01:08]} 18. Ra2 {[%clk 0:01:48]}  Ne5 {[%clk 0:01:01]} 19. Nxe5 {[%clk 0:01:47]}  Qxe5 {[%clk 0:01:01]} 20. Qxd3 {[%clk 0:01:43]}  Bxd5 {[%clk 0:01:01]} 21. Bxd5 {[%clk 0:01:35]}  Rc3 {[%clk 0:00:59]} 22. Qa6 {[%clk 0:01:34]}  h5 {[%clk 0:00:43]} 23. Rd1 {[%clk 0:01:27]}  Qf4 {[%clk 0:00:36]} 24. g3 {[%clk 0:01:16]}  Rxg3+ {[%clk 0:00:27]} 25. fxg3 {[%clk 0:01:17]}  Qxg3+ {[%clk 0:00:27]} 26. Rg2 {[%clk 0:01:17]}  Qe3+ {[%clk 0:00:26]} 27. Rf2 {[%clk 0:00:53]}  Qg3+ {[%clk 0:00:15]} 28. Kf1 {[%clk 0:00:53]}  Qxh3+ {[%clk 0:00:15]} 29. Ke2 {[%clk 0:00:51]}  Qg4+ {[%clk 0:00:10]} 30. Kd2 {[%clk 0:00:51]}  Bc3+ {[%clk 0:00:05]} 31. Kc2 {[%clk 0:00:49]}  Kh8 {[%clk 0:00:04]} 32. Qe2 {[%clk 0:00:44]}  Qg5 {[%clk 0:00:02]} 33. Kxc3 {[%clk 0:00:42]}  Qe5+ {[%clk 0:00:01]} 34. Kb3 {[%clk 0:00:41]}  Rc8 {[%clk 0:00:02]} 35. Qb2 {[%clk 0:00:41]} 1-0


[Site "https://www.chess.com"]